bitfinex/quotes_ETHUSD_20240823
["timestamp","ask_amount","ask_price","bid_price","bid_amount"]
[1724440346722,3.65169,2738.5,2737.7,3.65269]
[1724440347315,0.55,2738.9,2738.1,3.65204]
[1724440347316,3.65115,2738.9,2738.1,3.65204]
[1724440347516,3.65115,2738.9,2737.9,3.65243]
[1724440347816,3.365115,2738.8,2737.9,3.65243]
[1724440348023,7.016425,2738.8,2738.0,3.65228]
[1724440348319,3.65148,2738.7,2737.9,3.65243]
[1724440348472,2.4305,2738.7,2737.4,6.14805]
[1724440348811,2.4305,2738.7,2737.2,3.65332]
[1724440348812,3.65232,2738.0,2737.2,3.65332]
[1724440349314,3.6523,2738.0,2737.2,3.65332]
[1724440349515,6.00156,2738.1,2737.2,3.65332]
[1724440349718,6.00156,2738.1,2737.4,3.65309]
[1724440349906,2.3493,2738.1,2737.4,3.65309]
[1724440350073,3.0,2738.4,2737.7,3.65265]
[1724440350437,6.65178,2738.4,2737.7,3.65265]
[1724440350716,6.65178,2738.4,2737.4,3.65305]
[1724440350717,3.65191,2738.3,2737.4,3.65305]
[1724440350909,3.0,2738.2,2737.4,3.65301]
[1724440351224,3.6523,2738.0,2737.2,3.65334]
[1724440351378,4.682742,2738.0,2737.2,3.65334]
[1724440351791,3.65245,2737.9,2737.2,3.65334]
[1724440351985,3.65258,2737.8,2737.1,2.495]
[1724440352179,7.30527,2737.8,2737.1,2.495]
[1724440352500,7.30527,2737.8,2737.0,3.65359]
[1724440352501,3.65276,2737.7,2737.0,3.65359]
[1724440352883,0.730534,2737.7,2736.8,3.65388]
[1724440353157,6.65243,2737.9,2736.6,3.65406]
[1724440353339,6.65243,2737.9,2736.5,2.4214]
[1724440353340,5.91321,2737.4,2736.5,3.65423]
[1724440353484,3.65352,2737.1,2736.4,3.6544]
[1724440353680,3.65328,2737.3,2736.4,3.6544]
[1724440353885,3.65326,2737.3,2736.4,3.65432]
[1724440354082,3.65326,2737.3,2736.6,3.65415]
[1724440354342,2.2601,2737.4,2736.6,3.65415]
[1724440354502,3.65274,2737.7,2736.8,3.65388]
[1724440354709,3.0,2737.6,2736.9,3.65373]
[1724440354904,3.0,2737.6,2736.8,3.65388]
[1724440355110,3.65281,2737.7,2736.9,0.365388]
[1724440355640,3.65281,2737.7,2736.9,4.019058]
[1724440355986,3.65286,2737.6,2736.9,4.019058]
[1724440356232,3.6531,2737.4,2736.6,3.65412]
[1724440356589,3.65351,2737.1,2736.5,0.365432]
[1724440356792,3.65351,2737.1,2736.4,3.65442]
[1724440357348,3.65257,2737.8,2736.4,2.4858]
[1724440357510,5.90325,2737.9,2737.1,3.65341]
[1724440357694,3.65217,2738.1,2737.0,2.4858]
[1724440357892,2.2508,2738.3,2737.4,3.65304]
[1724440358237,2.2508,2738.3,2737.6,3.65279]
[1724440358238,5.9027,2738.3,2737.6,3.65279]
[1724440358563,2.5873115,2738.7,2737.7,3.65269]
[1724440358690,3.65163,2738.5,2737.7,3.65269]
[1724440359091,3.65177,2738.4,2737.7,3.65269]
[1724440359331,3.652,2738.3,2737.7,0.979142]
[1724440359516,3.65217,2738.1,2737.4,3.65308]
[1724440359741,3.0,2738.6,2737.7,3.65267]
[1724440359742,8.90242,2738.6,2737.7,3.65267]
[1724440359903,3.65164,2738.5,2737.6,3.65282]
[1724440360090,3.0,2738.4,2737.7,3.65268]
[1724440360536,6.65178,2738.4,2737.7,3.65268]
[1724440361143,6.65178,2738.4,2737.7,4.383243]
[1724440361144,3.0,2738.4,2737.7,4.383243]
[1724440361337,3.65164,2738.5,2737.7,4.383243]
[1724440361558,2.2508,2738.6,2737.8,2.4858]
[1724440361763,3.65164,2738.5,2737.7,3.65262]
[1724440362068,3.6519,2738.3,2737.6,3.65282]
[1724440362652,3.65177,2738.4,2737.6,3.6527]
[1724440362853,3.6519,2738.3,2737.6,3.6527]
[1724440363023,3.65165,2738.5,2737.7,3.65268]
[1724440363813,2.2508,2738.6,2737.6,3.65278]
[1724440363814,5.90231,2738.6,2737.6,3.65278]
[1724440364142,5.90231,2738.6,2737.8,7.3049]
[1724440364338,5.90231,2738.6,2737.9,3.65241]
[1724440364843,2.2508,2738.6,2737.7,4.017898]
[1724440365051,2.2508,2738.6,2737.4,3.65304]
[1724440365052,3.65203,2738.2,2737.4,3.65304]
[1724440365352,3.6518,2738.4,2737.6,3.65281]
[1724440365617,3.6518,2738.4,2737.7,3.65259]
[1724440365760,3.65192,2738.3,2737.7,3.65259]
[1724440366113,5.90235,2738.6,2737.7,3.65259]
[1724440366329,6.792585,2738.6,2737.8,3.65255]
[1724440366563,6.792585,2738.6,2737.9,3.65239]
[1724440366876,3.141035,2738.6,2738.0,3.6522]
[1724440367229,3.141035,2738.6,2737.9,3.65234]
[1724440367764,3.141035,2738.6,2737.7,4.383205]
[1724440367765,0.6792485,2738.5,2737.7,4.383205]
[1724440367914,3.65177,2738.4,2737.5,3.65287]
[1724440368119,2.3637,2738.3,2737.6,3.65276]
[1724440368313,2.3637,2738.3,2737.7,3.65268]
[1724440368524,2.96799485,2738.3,2737.8,3.65247]
[1724440369208,3.651,2739.0,2737.1,11.34201]
[1724440369209,2.3637,2738.7,2737.3,3.65319]
[1724440369387,2.3637,2738.7,2738.1,3.65215]
[1724440369532,5.3637,2738.7,2738.1,3.65215]
[1724440370060,3.65156,2738.6,2737.9,3.65236]
[1724440370387,0.901526,2738.5,2737.9,3.65236]
[1724440370967,4.553156,2738.5,2737.9,3.65236]
[1724440371332,4.553156,2738.5,2737.7,3.65261]
[1724440371536,4.553156,2738.5,2737.8,3.65248]
[1724440371735,0.901526,2738.5,2737.9,3.65239]
[1724440371929,3.0,2738.6,2737.9,3.65239]
[1724440372258,3.0,2738.6,2737.6,2.296]
[1724440372259,3.6511,2738.9,2738.2,7.30394]
[1724440372470,3.0,2738.8,2738.2,3.65195]
[1724440372633,3.65144,2738.7,2738.0,3.65222]
[1724440372833,7.30291,2738.7,2738.0,3.65222]
[1724440373071,4.681731,2738.7,2738.0,3.65222]
[1724440373448,8.333201,2738.7,2738.0,3.65222]
[1724440373634,8.333191,2738.7,2738.0,3.65222]
[1724440373835,4.681731,2738.7,2738.0,3.65222]
[1724440374083,3.0,2738.8,2738.0,3.65222]
[1724440374239,3.0,2738.8,2738.2,3.65202]
[1724440374434,3.0,2738.8,2738.2,3.65199]
[1724440374635,6.65115,2738.9,2738.0,3.65226]
[1724440374887,6.65115,2738.9,2738.0,3.65219]
[1724440375078,6.65115,2738.9,2738.2,3.65203]
[1724440375282,3.0,2738.9,2738.4,3.65172]
[1724440375451,2.3637,2739.0,2738.4,3.65172]
[1724440375452,5.3637,2739.0,2738.4,3.65172]
[1724440375837,5.3637,2739.0,2738.2,5.97653]
[1724440375838,5.3637,2739.0,2738.2,3.65193]
[1724440376038,3.6511,2738.9,2738.2,3.65193]
[1724440376232,3.0,2738.8,2738.2,3.65193]
[1724440376453,2.3637,2739.0,2738.5,3.65161]
[1724440376731,3.65072,2739.2,2738.5,3.65161]
[1724440377754,3.65108,2739.0,2738.2,4.0536549]
[1724440378136,5.96158,2738.9,2738.2,4.0536549]
[1724440378333,3.65124,2738.8,2738.0,3.65223]
[1724440378591,3.65124,2738.8,2738.1,3.65215]
[1724440378758,3.65136,2738.7,2738.0,3.65223]
[1724440378961,7.30259,2738.8,2738.0,3.65223]
[1724440379166,3.65137,2738.7,2738.0,3.65223]
[1724440379371,4.612671,2738.7,2738.0,3.6522]
[1724440379964,4.612671,2738.7,2738.1,3.65213]
[1724440380187,4.612671,2738.7,2738.0,3.6522]
[1724440380573,4.612671,2738.7,2738.0,7.3044]
[1724440380803,4.612671,2738.7,2738.0,3.6522]
[1724440381135,0.961301,2738.7,2738.1,3.65203]
[1724440381482,6.65133,2738.8,2738.1,3.65203]
[1724440381688,7.30284,2738.7,2738.0,3.6522]
[1724440381848,3.65138,2738.7,2738.0,3.6522]
[1724440382048,3.65138,2738.7,2738.0,7.30439]
[1724440382251,3.0,2738.8,2738.2,3.65203]
[1724440382586,3.0,2738.8,2738.0,3.65219]
[1724440382587,7.547496,2738.8,2738.0,3.65219]
[1724440382943,3.0,2738.8,2738.3,3.6518]
[1724440383189,2.3104,2738.9,2738.3,3.6518]
[1724440383359,3.6509,2739.1,2738.3,3.6518]
[1724440383685,6.65063,2739.3,2738.5,3.6515]
[1724440383884,6.65063,2739.3,2738.8,3.65115]
[1724440383885,3.0,2739.3,2738.8,3.65115]
[1724440384084,0.912376,2739.3,2738.8,3.65115]
[1724440384577,6.6505,2739.4,2738.9,3.65108]
[1724440384578,3.0,2739.4,2738.9,3.65108]
[1724440384786,5.4734,2739.5,2738.9,3.65108]
[1724440385093,2.4734,2739.5,2739.0,3.65088]
[1724440385302,2.4734,2739.5,2739.0,7.30176]
[1724440385594,2.4734,2739.5,2739.0,3.65088]
[1724440385765,3.65006,2739.7,2739.1,3.65081]
[1724440385967,0.977342,2739.6,2739.1,3.65081]
[1724440386176,6.12336,2739.8,2739.1,3.65081]
[1724440386360,9.77339,2739.8,2739.1,3.65081]
[1724440386542,6.12336,2739.8,2739.1,3.65081]
[1724440386970,6.12336,2739.8,2739.2,3.65067]
[1724440386971,2.4734,2739.8,2739.2,3.65067]
[1724440387168,2.4734,2739.8,2739.1,3.65081]
[1724440387383,2.4734,2739.8,2739.1,3.65072]
[1724440387548,6.47027201,2739.8,2739.1,7.30144]
[1724440387746,3.7818078,2740.0,2739.3,3.65051]
[1724440387992,0.1321278,2740.0,2739.3,3.65051]
[1724440388195,0.1321278,2740.0,2739.2,2.3148]
[1724440388196,0.1321278,2740.0,2739.2,5.96545]
[1724440388393,3.7818178,2740.0,2739.2,5.96545]
[1724440388702,3.6498,2739.9,2739.1,3.65079]
[1724440389012,3.7818178,2740.0,2739.2,3.65069]
[1724440389219,3.7818178,2740.0,2739.1,4.380974]
[1724440389406,3.65002,2739.8,2739.1,4.380974]
[1724440389589,3.65003,2739.7,2739.1,4.380974]
[1724440390037,3.65002,2739.8,2739.1,4.380974]
[1724440390340,3.6498,2739.9,2739.2,3.65069]
[1724440390488,3.6498,2739.9,2738.7,3.65124]
[1724440390489,3.65016,2739.6,2738.7,3.65124]
[1724440390696,3.65052,2739.4,2738.7,3.65135]
[1724440390894,9.3336134,2739.6,2738.8,2.3581]
[1724440390895,3.0,2739.5,2738.8,2.3581]
[1724440391338,3.0,2739.5,2738.9,3.651]
[1724440391670,3.0,2739.7,2739.0,0.07301595]
[1724440391874,8.92731,2739.8,2739.0,3.65086]
[1724440392194,5.2773,2739.8,2739.0,3.65086]
[1724440392444,8.92721,2739.8,2739.2,3.65064]
[1724440392608,0.1321278,2740.0,2739.4,3.65035]
[1724440392817,0.1321278,2740.0,2739.5,0.365035]
[1724440392994,0.1321278,2740.0,2739.4,3.65031]
[1724440393196,0.1321278,2740.0,2739.3,2.3851]
[1724440393437,0.1321278,2740.0,2739.9,3.64976]
[1724440394012,0.1321278,2740.0,2739.9,6.02686]
[1724440394432,0.1321278,2740.0,2739.9,9.67662]
[1724440394755,0.1321278,2740.0,2739.9,10.644282]
[1724440397849,0.1321278,2740.0,2739.9,6.994522]
[1724440398067,0.1321278,2740.0,2739.8,3.64988]
[1724440398339,0.1321278,2740.0,2739.6,7.30016]
[1724440398548,0.1321278,2740.0,2739.7,3.64995]
[1724440398696,0.1321278,2740.0,2739.5,3.65019]
[1724440399143,0.1321278,2740.0,2739.5,3.65029]
[1724440399310,0.1321278,2740.0,2739.4,3.65036]
[1724440399513,0.1321278,2740.0,2739.5,0.602936]
[1724440399847,0.1321278,2740.0,2739.5,3.65029]
[1724440400017,0.1321278,2740.0,2739.3,6.02945]
[1724440400215,3.64998,2739.8,2739.0,3.6509]
[1724440400532,3.64998,2739.8,2739.1,3.65071]
[1724440401054,3.65015,2739.7,2739.0,3.65087]
[1724440401346,3.65015,2739.7,2739.1,3.65081]
[1724440402319,7.29963,2739.9,2739.1,7.30156]
[1724440402661,3.6499,2739.8,2739.2,3.65068]
[1724440402813,3.64976,2739.9,2739.2,3.65068]
[1724440403015,3.1321278,2740.0,2739.3,3.65048]
[1724440403328,3.1321278,2740.0,2739.5,3.65021]
[1724440405747,3.1321278,2740.0,2739.5,3.6502]
[1724440406527,0.1321278,2740.0,2739.5,3.6502]
[1724440406904,0.1321278,2740.0,2739.3,0.365048]
[1724440406905,0.1321278,2740.0,2739.3,0.43805009]
[1724440407104,0.1321278,2740.0,2739.8,3.64986]
[1724440407337,0.1321278,2740.0,2739.8,4.379855]
[1724440407503,0.1321278,2740.0,2739.9,3.64976]
[1724440407716,0.1321278,2740.0,2739.8,4.379805]
[1724440407919,0.1321278,2740.0,2739.8,8.029615]
[1724440408101,0.1321278,2740.0,2739.9,3.64976]
[1724440408312,0.1321278,2740.0,2739.9,4.6982565]
[1724440408530,0.1321278,2740.0,2739.9,8.3480165]
[1724440409141,0.1321278,2740.0,2739.9,4.6982565]
[1724440409516,0.1321278,2740.0,2739.9,8.3480165]
[1724440410513,0.1321278,2740.0,2739.9,11.9977765]
[1724440411654,0.1321278,2740.0,2739.9,8.3480165]
[1724440412705,0.1321278,2740.0,2739.9,11.9977765]
[1724440413335,0.1321278,2740.0,2739.9,14.9977765]
[1724440413544,9.70673593,2741.8,2739.9,14.9977765]
[1724440413545,2.4313,2742.0,2739.9,4.64123069]
[1724440413740,2.4313,2742.7,2741.4,3.64772]
[1724440413938,3.64708,2742.0,2741.2,3.64795]
[1724440414142,3.64728,2741.8,2741.0,7.29642]
[1724440414365,3.64744,2741.7,2741.1,3.64816]
[1724440414568,7.29462,2741.8,2741.1,3.64809]
[1724440414888,3.64728,2741.8,2741.1,3.64809]
[1724440415047,3.64728,2741.8,2741.1,7.29617]
[1724440415284,2.4313,2742.1,2741.1,0.729617]
[1724440415482,2.4313,2742.1,2741.5,3.64755]
[1724440415787,6.0548,2742.4,2741.7,3.64729]
[1724440415991,6.0548,2742.4,2741.3,2.4572]
[1724440415992,2.4083,2742.4,2741.8,3.64716]
[1724440416295,2.5404278,2742.8,2742.0,3.64684]
[1724440416461,0.25404278,2742.7,2742.1,3.64683]
[1724440416666,0.25404278,2742.7,2742.2,3.64666]
[1724440416854,0.25404278,2742.7,2742.3,3.64655]
[1724440417264,0.1321278,2742.8,2741.9,2.4572]
[1724440417525,0.1321278,2742.8,2742.2,3.64661]
[1724440417788,0.1321278,2742.8,2741.6,3.0]
[1724440417789,3.64645,2742.4,2741.7,7.2946]
[1724440418114,3.6462,2742.6,2741.9,3.647]
[1724440418220,3.6462,2742.6,2741.7,3.64728]
[1724440418364,0.60545,2742.5,2741.7,3.64726]
[1724440418763,4.25176,2742.5,2741.9,3.64702]
[1724440419004,4.25176,2742.5,2741.7,3.64726]
[1724440419174,4.25176,2742.5,2741.8,3.64722]
[1724440419559,4.25176,2742.5,2741.8,3.64721]
[1724440419762,0.425176,2742.4,2742.1,3.64681]
[1724440420109,2.4083,2742.4,2741.7,3.6473]
[1724440420260,3.64657,2742.3,2741.5,3.64753]
[1724440420470,3.64697,2742.0,2741.3,3.64787]
[1724440420774,3.64697,2742.0,2741.1,3.186817]
[1724440420775,3.64703,2742.0,2741.1,3.64807]
[1724440420991,3.6473,2741.8,2741.1,7.29615]
[1724440421189,3.64703,2742.0,2740.7,2.4572]
[1724440421190,0.36473,2741.7,2741.4,3.64774]
[1724440421360,3.64713,2741.9,2741.2,3.64794]
[1724440421564,3.64703,2742.0,2741.3,3.6479]
[1724440421783,6.05506,2742.2,2741.6,3.6475]
[1724440421980,3.0,2742.1,2741.4,3.64776]
[1724440422181,3.64697,2742.0,2741.4,3.64776]
[1724440422382,0.664697,2741.9,2741.4,3.64776]
[1724440423229,0.664697,2741.9,2741.4,3.64767]
[1724440423396,3.64733,2741.8,2741.0,3.6482]
[1724440423798,3.64702,2742.0,2741.4,3.64768]
[1724440424021,3.64702,2742.0,2741.2,3.64794]
[1724440424228,3.64702,2742.0,2741.2,7.29588]
[1724440424229,3.64711,2741.9,2741.2,7.29588]
[1724440424537,0.729413,2741.8,2741.2,7.29589]
[1724440424741,0.729413,2741.8,2741.2,3.64794]
[1724440425090,3.0,2742.1,2741.4,3.64776]
[1724440425186,3.0,2742.1,2741.4,6.03336]
[1724440425391,3.0,2742.1,2741.0,3.64817]
[1724440425592,3.64735,2741.8,2741.1,3.64814]
[1724440425796,3.64737,2741.7,2741.0,3.64817]
[1724440425995,6.751992,2741.6,2741.0,3.64817]
[1724440426219,3.0,2742.3,2740.9,3.64834]
[1724440426220,6.02204,2742.0,2740.9,3.64834]
[1724440426403,6.02198,2742.0,2741.3,7.29559]
[1724440426752,6.02198,2742.0,2741.3,3.64779]
[1724440426955,9.66905,2742.0,2741.3,3.64779]
[1724440427241,3.0,2742.3,2741.4,2.3856]
[1724440427388,0.3,2742.2,2741.5,3.64753]
[1724440427591,3.3,2742.2,2741.6,3.64742]
[1724440428181,0.005,2742.7,2742.0,2.3856]
[1724440428346,0.005,2742.7,2742.3,3.64645]
[1724440428494,0.005,2742.7,2742.4,3.64635]
[1724440429225,0.005,2742.7,2742.0,2.3856]
[1724440429429,0.005,2742.7,2742.6,9.67794]
[1724440429751,0.005,2742.7,2742.5,3.6463]
[1724440429891,0.005,2742.7,2742.4,3.64643]
[1724440430208,0.005,2742.7,2742.2,2.3856]
[1724440430392,0.005,2742.7,2741.8,6.0328]
[1724440430590,0.005,2742.7,2741.7,3.64736]
[1724440430816,3.6463,2742.5,2741.7,3.64736]
[1724440431250,3.64645,2742.4,2741.6,3.6475]
[1724440431538,4.26203378,2742.6,2741.7,3.64736]
[1724440431748,4.26203378,2742.6,2741.4,2.3856]
[1724440431749,2.375,2742.2,2741.0,2.3856]
[1724440431899,2.375,2742.2,2741.6,3.64739]
[1724440432091,3.64645,2742.4,2741.1,0.23856]
[1724440432092,0.79130738,2742.5,2741.7,6.03294]
[1724440432302,0.005,2742.7,2741.9,3.64708]
[1724440432597,6.65107,2742.7,2741.9,3.64708]
[1724440432795,3.64664,2742.3,2741.5,3.64763]
[1724440433341,3.64664,2742.3,2741.3,6.03338]
[1724440433342,0.55,2742.2,2741.3,3.64778]
[1724440433521,3.64694,2742.1,2741.3,3.64778]
[1724440433876,3.64694,2742.1,2741.1,3.64813]
[1724440433877,0.419694,2742.0,2741.1,3.64813]
[1724440434165,3.64723,2741.8,2741.1,3.64813]
[1724440434573,6.02212,2741.9,2740.9,3.64842]
[1724440434950,3.64738,2741.7,2741.0,3.64828]
[1724440435120,6.02212,2741.9,2741.0,3.64828]
[1724440435356,9.22771502,2741.8,2740.8,3.64854]
[1724440435536,7.8076615,2741.7,2740.9,3.64838]
[1724440436055,7.8076615,2741.7,2740.8,3.64854]
[1724440436056,3.64751,2741.6,2740.8,3.64854]
[1724440436257,4.1602715,2741.7,2740.6,3.6488]
[1724440436464,4.1602715,2741.7,2740.4,3.64908]
[1724440436465,5.67771502,2741.4,2740.4,3.64908]
[1724440436729,5.67771502,2741.4,2740.3,3.6492]
[1724440436730,3.64816,2741.2,2740.3,3.6492]
[1724440437143,3.64831,2741.0,2740.3,3.6492]
[1724440437566,3.64831,2741.0,2740.0,1.03189457]
[1724440437567,3.64845,2740.9,2740.2,3.64936]
[1724440438088,3.64872,2740.7,2740.0,3.64963]
[1724440438288,3.64901,2740.5,2739.8,3.64984]
[1724440439245,3.64901,2740.5,2739.6,3.65011]
[1724440439462,3.64901,2740.5,2739.6,3.65006]
[1724440439660,3.64914,2740.4,2739.6,3.65006]
[1724440439876,3.64901,2740.5,2739.4,3.65039]
[1724440439877,5.67771502,2740.2,2739.4,3.65034]
[1724440440085,4.5823055,2740.1,2739.2,3.65066]
[1724440440249,7.5823055,2740.1,2739.3,3.65052]
[1724440440442,3.9327055,2740.1,2739.4,3.65043]
[1724440440701,3.64964,2740.0,2739.2,3.65069]
[1724440440963,2.2998,2740.0,2739.3,3.65055]
[1724440441202,2.2998,2740.0,2739.3,4.380687]
[1724440441402,2.2998,2740.5,2739.6,3.65006]
[1724440441548,5.2998,2740.5,2739.8,3.64979]
[1724440441746,5.2998,2740.5,2739.6,3.65006]
[1724440442004,5.2998,2740.5,2739.9,3.64976]
[1724440442299,2.2998,2740.5,2739.8,3.64984]
[1724440443154,2.2998,2740.5,2739.7,3.65001]
[1724440443155,5.94877,2740.5,2739.7,3.65001]
[1724440443501,3.64911,2740.4,2739.7,3.65001]
[1724440443798,3.194668,2740.5,2739.0,2.381]
[1724440443799,3.194668,2740.5,2739.9,3.64965]
[1724440444071,3.64871,2740.7,2740.0,3.6495]
[1724440444203,4.259081,2740.7,2740.0,3.6495]
[1724440444409,4.259081,2740.7,2739.8,3.6498]
[1724440444576,4.259081,2740.7,2739.9,3.64974]
[1724440445316,3.64884,2740.6,2739.9,3.64974]
[1724440445523,3.64884,2740.6,2739.7,6.06863]
[1724440445524,3.64897,2740.5,2739.7,3.65003]
[1724440445717,3.64897,2740.5,2739.8,3.64989]
[1724440445869,0.4258941,2740.6,2739.7,0.73003]
[1724440446067,4.259081,2740.7,2740.0,3.64961]
[1724440446290,4.259081,2740.7,2739.8,3.64989]
[1724440446291,3.64886,2740.6,2739.8,3.64989]
[1724440446499,3.64901,2740.5,2739.8,3.64989]
[1724440446995,4.259081,2740.7,2739.6,3.65014]
[1724440446996,3.6491,2740.4,2739.6,3.65014]
[1724440447308,0.36491,2740.3,2739.8,3.64988]
[1724440447516,3.64913,2740.4,2739.6,3.65014]
[1724440447671,3.64911,2740.4,2739.6,3.65014]
[1724440447874,3.64911,2740.4,2739.7,3.64994]
[1724440447875,3.6491,2740.4,2739.7,3.64994]
[1724440448145,6.10433,2740.3,2739.5,3.65023]
[1724440448298,6.10433,2740.3,2739.6,3.65013]
[1724440449011,2.455,2740.3,2739.8,3.64985]
[1724440449219,3.64897,2740.5,2739.8,3.64985]
[1724440449362,3.64924,2740.3,2739.6,3.65013]
[1724440449562,1.1781685,2740.4,2739.0,5.4186]
[1724440449563,3.64964,2740.0,2739.2,3.65065]
[1724440449812,3.64964,2740.0,2738.2,3.65198]
[1724440449813,3.64976,2739.9,2739.1,3.65081]
[1724440450103,3.65,2739.8,2739.1,3.65081]
[1724440450413,3.65003,2739.7,2739.1,3.65081]
[1724440450572,4.380009,2739.7,2738.9,3.65101]
[1724440450769,3.65017,2739.6,2738.9,3.65101]
[1724440450965,2.355,2739.5,2738.9,3.65101]
[1724440451165,3.65055,2739.4,2738.5,3.65156]
[1724440451488,9.87820502,2739.4,2738.5,3.65156]
[1724440451668,1.2233205,2739.3,2738.5,3.65156]
[1724440452535,3.65056,2739.3,2738.7,3.65127]
[1724440453392,3.6507,2739.2,2738.5,3.65153]
[1724440454229,3.65088,2739.1,2738.5,3.65153]
[1724440454426,7.30182,2739.1,2738.3,3.65187]
[1724440454608,7.30182,2739.1,2738.1,3.65211]
[1724440454609,3.65112,2738.9,2738.1,7.30418]
[1724440454820,6.12589,2738.8,2738.1,3.65207]
[1724440455032,2.4746,2738.8,2737.8,3.65253]
[1724440455337,2.4746,2738.8,2738.0,3.65225]
[1724440455554,2.4746,2738.8,2738.0,3.6522]
[1724440455555,3.65138,2738.7,2738.0,3.6522]
[1724440455847,3.65138,2738.7,2737.8,3.65251]
[1724440455993,3.65167,2738.5,2737.8,3.65251]
[1724440456199,9.32938502,2738.5,2737.8,3.65251]
[1724440456440,3.65191,2738.3,2737.6,3.65276]
[1724440456654,3.65206,2738.2,2737.6,0.95782]
[1724440456961,6.13806,2738.2,2737.6,3.65282]
[1724440457120,3.6518,2738.4,2737.6,3.65282]
[1724440457121,3.6518,2738.4,2737.6,3.65274]
[1724440457444,5.486,2738.6,2738.0,3.65219]
[1724440457609,2.486,2738.6,2738.0,3.65219]
[1724440457810,3.0,2738.7,2738.2,3.65191]
[1724440458011,3.0,2738.8,2738.2,3.65191]
[1724440458639,9.32962502,2738.3,2737.3,3.65313]
[1724440458799,5.67771502,2738.3,2737.0,2.4315]
[1724440458995,2.1480145,2738.7,2737.7,3.65269]
[1724440458996,3.65154,2738.6,2737.7,3.65269]
[1724440459244,3.65154,2738.6,2737.9,3.6524]
[1724440459447,3.65178,2738.4,2737.7,3.6526]
[1724440459664,3.65191,2738.3,2737.7,4.626305]
[1724440459807,3.65215,2738.2,2737.5,3.65295]
[1724440460206,7.30431,2738.2,2737.5,3.65295]
[1724440460717,3.65214,2738.2,2737.3,3.65315]
[1724440460928,3.65214,2738.2,2737.5,3.65292]
[1724440461463,3.65192,2738.3,2737.6,0.365292]
[1724440461953,3.65216,2738.1,2737.6,0.365292]
[1724440462106,3.65216,2738.1,2737.5,3.65287]
[1724440462729,3.65192,2738.3,2737.5,3.65287]
[1724440462928,16.32213952,2738.7,2737.7,3.65262]
[1724440462929,3.65158,2738.6,2737.7,3.65262]
[1724440463195,3.0,2738.5,2737.9,3.65241]
[1724440463338,6.65173,2738.5,2737.7,3.65262]
[1724440463537,7.71620445,2738.5,2737.7,3.65262]
[1724440464207,3.65239,2738.0,2736.6,2.4909]
[1724440464444,3.65266,2737.8,2737.2,3.65328]
[1724440464627,3.0,2737.9,2737.4,3.65301]
[1724440464834,3.0,2738.1,2737.6,3.65281]
[1724440465067,3.65237,2738.0,2737.4,3.653]
[1724440465359,3.65206,2738.2,2737.4,4.632709]
[1724440465514,3.65206,2738.2,2737.6,3.65283]
[1724440465716,3.65206,2738.2,2737.6,3.65274]
[1724440465920,3.65206,2738.2,2737.7,3.65269]
[1724440466134,8.92703,2738.4,2737.8,3.65249]
[1724440466135,3.0,2738.4,2737.8,3.65249]
[1724440466470,3.65166,2738.5,2737.9,3.65232]
[1724440466647,3.65176,2738.4,2737.8,2.706249]
[1724440466849,3.65231,2738.0,2737.4,3.320719]
[1724440467061,3.65214,2738.2,2737.5,3.65295]
[1724440467359,3.65217,2738.1,2737.5,3.65295]
[1724440467875,3.6521,2738.2,2737.3,3.65312]
[1724440468031,3.65245,2737.9,2737.3,3.65312]
[1724440468235,3.65239,2738.0,2737.3,3.65312]
[1724440468572,3.65239,2738.0,2737.4,3.65301]
[1724440469072,3.65248,2737.9,2737.3,3.65312]
[1724440469877,3.65249,2737.9,2737.1,3.6534]
[1724440469959,4.254819,2737.9,2736.8,6.09846]
[1724440470130,4.254819,2737.9,2737.3,3.65312]
[1724440470331,6.02303,2738.1,2736.9,3.65372]
[1724440470332,3.65223,2738.1,2736.9,3.65372]
[1724440470559,3.65212,2738.2,2737.4,3.65305]
[1724440470834,3.0,2738.1,2737.7,3.65269]
[1724440471032,3.0,2738.1,2737.6,3.6528]
[1724440471033,0.06367489,2738.3,2737.8,3.65254]
[1724440471337,5.9792,2738.4,2737.8,3.65254]
[1724440471577,5.9792,2738.4,2737.6,6.0974]
[1724440471578,3.65192,2738.3,2737.6,9.75011]
[1724440471886,3.65192,2738.3,2737.7,3.65269]
[1724440472170,7.30393,2738.3,2737.6,6.09731]
[1724440472532,3.65207,2738.2,2737.6,3.65271]
[1724440473192,3.65192,2738.3,2737.6,7.30546]
[1724440473475,7.30395,2738.3,2737.6,7.30545]
[1724440473682,7.30395,2738.3,2737.6,3.65271]
[1724440473839,7.30395,2738.3,2737.6,7.30545]
[1724440474035,3.65192,2738.3,2737.6,7.30545]
[1724440474248,3.65192,2738.3,2737.7,3.65269]
[1724440474852,4.26662943,2738.3,2737.7,3.65269]
[1724440475670,4.26662943,2738.3,2737.8,3.65256]
[1724440475671,0.61470943,2738.3,2737.8,3.65256]
[1724440475836,0.61470943,2738.3,2737.8,3.65248]
[1724440476183,4.26661943,2738.3,2737.6,7.30544]
[1724440476369,7.91860943,2738.3,2737.6,7.30544]
[1724440476579,4.26661943,2738.3,2737.7,3.65266]
[1724440478185,3.8582605,2738.4,2737.8,3.65253]
[1724440478485,7.91759326,2738.6,2738.0,3.65222]
[1724440478690,3.0,2738.5,2738.0,3.65222]
[1724440479591,6.65164,2738.5,2737.9,7.30478]
[1724440479745,8.10855333,2738.5,2737.9,7.30478]